bitfinex/quotes_ETHUSD_20240730
["timestamp","ask_amount","ask_price","bid_price","bid_amount"]
[1722304797501,7.37,3307.0,3306.3,4.76809404]
[1722304797701,9.78913,3307.0,3306.3,4.70761]
[1722304797890,7.37,3307.0,3306.4,0.06047971]
[1722304798537,7.37,3307.0,3306.3,4.70761]
[1722304798726,3.65973483,3307.1,3306.3,4.70761]
[1722304798914,3.55,3307.0,3306.4,0.06047969]
[1722304799118,3.55,3307.0,3306.3,4.70761]
[1722304799355,3.55,3307.0,3306.3,5.420347]
[1722304799527,5.96913,3307.0,3306.3,5.420347]
[1722304799852,3.55,3307.0,3306.3,0.712737]
[1722304800056,2.41933,3306.7,3305.9,4.7217]
[1722304800254,2.4194,3306.6,3305.9,4.7217]
[1722304800458,2.41928,3306.8,3306.0,2.41983]
[1722304800619,2.41934,3306.7,3306.0,2.41983]
[1722304800961,5.41918,3306.9,3305.9,5.435874]
[1722304800962,2.4194,3306.6,3305.9,5.435874]
[1722304801128,6.63999329,3306.9,3305.5,2.42017]
[1722304801333,6.63999329,3306.9,3305.5,2.4634]
[1722304801334,2.41969,3306.2,3305.5,2.4634]
[1722304801556,2.41969,3306.2,3305.3,2.42031]
[1722304801855,0.55,3306.1,3305.3,0.06049621]
[1722304802018,2.4197,3306.2,3305.4,2.42027]
[1722304802214,2.4197,3306.2,3305.5,2.48069621]
[1722304802484,5.41962,3306.3,3305.6,2.42012]
[1722304802623,2.96972,3306.2,3305.5,0.06049621]
[1722304802821,2.96972,3306.2,3305.5,0.27446214]
[1722304802822,2.41993,3305.9,3305.5,0.27446214]
[1722304803035,5.41981,3306.1,3305.6,0.0604971]
[1722304803457,3.0,3306.1,3305.6,0.0604971]
[1722304803657,3.55,3306.2,3305.6,0.0604971]
[1722304803962,2.695,3306.7,3305.9,2.4561]
[1722304803963,2.41934,3306.7,3305.9,2.4561]
[1722304804171,0.55,3306.6,3306.0,2.48030853]
[1722304805140,0.55,3306.6,3306.5,35.0]
[1722304805458,5.41912,3307.0,3306.5,35.0]
[1722304805834,2.41901,3307.2,3306.6,0.06048142]
[1722304806081,7.37,3307.7,3306.8,2.41924]
[1722304806267,16.13832709,3308.0,3307.3,2.41888]
[1722304806268,1.23973593,3308.0,3307.3,2.41888]
[1722304806605,2.41838,3308.0,3307.4,35.0]
[1722304807112,7.37,3308.1,3307.4,35.0]
[1722304807266,8.74229659,3308.1,3307.4,35.0]
[1722304807614,2.41838,3308.0,3307.4,35.0]
[1722304807795,2.41874,3307.5,3307.4,35.0]
[1722304807963,2.41869,3307.6,3307.4,35.0]
[1722304808164,2.695,3307.9,3307.4,35.0]
[1722304808165,4.83748,3307.5,3307.4,35.0]
[1722304808397,5.321228,3307.5,3307.4,35.0]
[1722304808804,2.41847,3307.9,3307.4,35.0]
[1722304808988,7.37,3308.1,3307.5,0.06046311]
[1722304809172,1.23973593,3308.4,3307.5,0.06046311]
[1722304809173,2.41809,3308.4,3307.5,0.06046311]
[1722304809375,2.41836,3308.1,3307.4,35.0]
[1722304809610,2.41861,3307.7,3307.4,35.0]
[1722304809830,2.41845,3307.9,3307.4,35.0]
[1722304810194,2.41858,3307.8,3307.4,35.0]
[1722304810406,2.41861,3307.7,3307.4,35.0]
[1722304810640,2.41861,3307.7,3306.9,2.41912]
[1722304810932,2.41845,3307.9,3307.0,0.06046665]
[1722304811137,2.41825,3308.2,3307.3,2.41888]
[1722304811315,2.41825,3308.2,3307.5,2.41873]
[1722304811507,2.41825,3308.2,3307.6,0.06045878]
[1722304812036,2.41825,3308.2,3307.7,35.0]
[1722304812609,2.41831,3308.1,3307.7,35.0]
[1722304812805,2.41852,3307.8,3307.7,35.0]
[1722304813243,2.41836,3308.1,3307.7,35.0]
[1722304813429,3.0,3308.1,3307.7,35.0]
[1722304813633,5.41831,3308.1,3307.7,35.0]
[1722304814020,2.4185,3307.9,3307.7,35.0]
[1722304814348,3.0,3308.1,3307.7,35.0]
[1722304814646,5.38704,3307.8,3307.7,35.0]
[1722304814843,5.38704,3307.8,3306.4,2.41954]
[1722304814844,2.41894,3307.3,3306.4,2.41954]
[1722304815006,2.41876,3307.5,3306.8,2.41925]
[1722304815213,0.55,3307.4,3306.8,2.41925]
[1722304815437,0.55,3307.4,3307.0,35.0]
[1722304815438,2.41898,3307.2,3307.0,35.0]
[1722304815745,2.48209673,3307.3,3307.0,35.0]
[1722304816049,3.0,3307.5,3307.0,35.0]
[1722304816347,2.48211556,3307.2,3307.0,35.0]
[1722304816554,2.4189,3307.3,3307.0,35.0]
[1722304816707,4.90106503,3307.1,3307.0,35.0]
[1722304816905,0.55,3307.2,3305.2,2.695]
[1722304817145,0.06280567,3307.1,3305.6,4.195]
[1722304817345,0.06280567,3307.1,3306.8,2.41923]
[1722304817547,0.06280567,3307.1,3306.9,0.06047325]
[1722304817707,2.4186,3307.7,3307.0,2.41911]
[1722304817909,0.24186,3307.7,3307.1,0.06047323]
[1722304818114,0.06276733,3307.6,3307.1,0.06047323]
[1722304818352,0.06276733,3307.6,3307.2,35.0]
[1722304818550,0.06276733,3307.6,3307.3,0.06046227]
[1722304818718,2.4184,3308.0,3307.2,2.41895]
[1722304818912,2.41846,3307.9,3307.2,2.41895]
[1722304819249,2.41846,3307.9,3307.0,2.41911]
[1722304819250,2.72304266,3307.9,3307.4,35.0]
[1722304819449,2.41867,3307.6,3307.4,35.0]
[1722304819842,2.41874,3307.5,3307.4,35.0]
[1722304820050,3.03161855,3307.5,3307.4,35.0]
[1722304820226,0.06287855,3307.5,3307.4,35.0]
[1722304820549,2.41865,3307.7,3307.4,35.0]
[1722304820771,3.0,3307.8,3307.4,35.0]
[1722304820916,0.06299739,3307.6,3307.4,35.0]
[1722304821310,5.41838,3308.0,3307.4,35.0]
[1722304821571,2.41858,3307.8,3307.4,35.0]
[1722304821916,0.61298589,3307.7,3307.4,35.0]
[1722304822172,3.61298589,3307.7,3307.4,35.0]
[1722304823243,2.41874,3307.5,3307.4,35.0]
[1722304823445,5.38748,3307.5,3307.4,35.0]
[1722304823657,6.64427906,3307.5,3307.4,35.0]
[1722304823855,9.64427906,3307.5,3307.4,35.0]
[1722304824659,3.61305106,3307.5,3307.4,35.0]
[1722304824886,3.55,3307.5,3307.4,35.0]
[1722304825180,3.6128747,3307.5,3307.4,35.0]
[1722304825368,3.55,3307.5,3307.4,35.0]
[1722304825566,3.6128747,3307.5,3307.4,35.0]
[1722304825746,3.55,3307.5,3307.4,35.0]
[1722304825944,3.6128747,3307.5,3307.4,35.0]
[1722304826181,0.55,3307.5,3307.4,35.0]
[1722304826354,2.41874,3307.5,3307.4,35.0]
[1722304826666,3.61295906,3307.5,3307.4,35.0]
[1722304827246,2.41824,3308.2,3307.4,38.04901288]
[1722304827498,7.37,3308.8,3307.9,2.41844]
[1722304827695,7.37,3308.8,3308.0,2.47881175]
[1722304827696,2.41783,3308.8,3308.0,2.47881175]
[1722304827861,9.78756,3309.2,3308.4,35.0]
[1722304828261,9.78756,3309.2,3308.4,37.41807]
[1722304828684,2.41758,3309.1,3308.4,37.41807]
[1722304828886,2.41735,3309.4,3308.5,0.06044487]
[1722304829048,2.41745,3309.3,3308.5,0.06044487]
[1722304829252,2.41751,3309.2,3308.5,0.06044487]
[1722304829449,2.41751,3309.2,3308.6,35.0]
[1722304829758,2.41778,3308.9,3308.6,35.0]
[1722304829979,2.659558,3308.9,3308.6,35.0]
[1722304830192,2.41778,3308.9,3308.6,35.0]
[1722304830496,9.78725,3309.6,3308.6,35.0]
[1722304830497,2.4176,3309.1,3308.6,35.0]
[1722304830872,0.55,3309.0,3308.6,35.0]
[1722304831080,5.96765,3309.0,3308.6,35.0]
[1722304831396,2.4178,3308.8,3308.6,35.0]
[1722304831594,3.55,3309.0,3308.6,35.0]
[1722304831794,2.41786,3308.7,3308.6,35.0]
[1722304831954,5.38572,3308.7,3308.6,35.0]
[1722304832300,8.38572,3308.7,3308.6,35.0]
[1722304832499,5.38572,3308.7,3308.6,35.0]
[1722304832700,8.38572,3308.7,3308.6,35.0]
[1722304833005,9.559792,3308.7,3308.6,35.0]
[1722304833862,9.62342182,3308.7,3308.6,35.0]
[1722304834091,3.06362982,3308.7,3308.6,35.0]
[1722304834447,3.0,3308.7,3308.6,35.0]
[1722304834649,2.41765,3309.0,3308.6,35.0]
[1722304834849,0.06138406,3308.7,3308.6,35.0]
[1722304835069,2.41765,3309.0,3308.6,35.0]
[1722304835070,2.41744,3309.3,3308.6,35.0]
[1722304835408,2.41728,3309.5,3308.7,0.06044018]
[1722304835549,2.41729,3309.5,3308.5,4.84]
[1722304835754,2.41751,3309.2,3308.5,4.84]
[1722304836044,2.41735,3309.4,3309.1,35.0]
[1722304836357,9.78721,3309.6,3309.1,35.0]
[1722304836795,3.0,3309.5,3309.1,35.0]
[1722304837000,0.55,3309.4,3309.1,35.0]
[1722304837419,0.55,3309.4,3309.1,38.04901288]
[1722304837631,3.0,3309.6,3309.1,38.04901288]
[1722304837924,0.55,3309.5,3309.1,38.04901288]
[1722304838079,3.55,3309.6,3309.2,1.45403541]
[1722304838274,3.0,3309.5,3309.2,1.5144697]
[1722304838520,3.0,3309.8,3309.2,0.06043429]
[1722304838818,2.41714,3309.7,3309.3,35.0]
[1722304839631,2.41735,3309.4,3309.3,35.0]
[1722304839938,2.41735,3309.4,3306.9,10.70397516]
[1722304839939,2.418,3308.6,3308.0,2.4753]
[1722304840334,2.418,3308.6,3308.5,35.0]
[1722304840632,5.38599,3308.6,3308.5,35.0]
[1722304840921,2.96799,3308.6,3308.5,35.0]
[1722304841232,8.924517,3308.6,3308.5,35.0]
[1722304842791,11.342457,3308.6,3308.5,35.0]
[1722304843192,11.342457,3308.6,3307.0,4.69141]
[1722304843193,2.41829,3308.2,3307.0,2.2723]
[1722304843443,2.96831,3308.1,3307.0,2.2723]
[1722304843665,2.96831,3308.1,3307.6,35.0]
[1722304843935,9.78808,3308.4,3307.7,0.06046083]
[1722304844102,2.41817,3308.3,3307.6,37.4186]
[1722304844285,2.41817,3308.3,3307.6,35.0]
[1722304844286,2.41822,3308.3,3307.6,35.0]
[1722304844489,2.41823,3308.2,3307.6,35.0]
[1722304844731,2.41837,3308.0,3307.6,35.0]
[1722304844938,3.0,3308.1,3307.6,35.0]
[1722304845120,3.0,3308.3,3307.6,37.41866]
[1722304845299,0.55,3308.2,3307.6,37.41866]
[1722304845646,3.55,3308.2,3307.6,37.41866]
[1722304845810,3.0,3308.2,3307.8,2.41851]
[1722304846014,3.0,3308.4,3307.9,0.06045377]
[1722304846236,2.41788,3308.7,3307.9,0.06045377]
[1722304846237,3.0,3308.6,3307.9,4.86170377]
[1722304846543,2.96806,3308.5,3308.0,35.0]
[1722304846699,3.0,3308.4,3308.0,35.0]
[1722304846898,3.0,3308.4,3308.1,3.04901288]
[1722304847127,0.55,3308.5,3308.1,3.04901288]
[1722304847359,0.55,3308.5,3308.1,0.06045159]
[1722304847500,0.55,3308.5,3308.2,35.0]
[1722304847850,9.78773,3308.9,3308.2,37.41822]
[1722304847851,9.78772,3308.9,3308.2,37.41822]
[1722304848005,2.928883,3309.7,3307.9,2.86897038]
[1722304848006,2.41754,3309.2,3308.3,2.47854636]
[1722304848201,2.41765,3309.0,3308.3,2.47854636]
[1722304848403,7.37,3309.5,3308.3,0.48968364]
[1722304848600,2.41765,3309.0,3308.7,35.0]
[1722304848840,2.41761,3309.1,3308.7,35.0]
[1722304849046,0.05564521,3308.9,3308.7,35.0]
[1722304849265,9.78729,3309.5,3307.9,2.86897038]
[1722304849542,9.78729,3309.5,3308.5,2.41798]
[1722304849543,2.41752,3309.2,3308.5,2.41798]
[1722304849869,2.41752,3309.2,3309.1,35.0]
[1722304849870,4.835,3309.2,3309.1,35.0]
[1722304850599,2.9675,3309.2,3309.1,35.0]
[1722304850802,3.0,3309.2,3309.1,35.0]
[1722304851003,5.41733,3309.5,3309.1,38.04901288]
[1722304851239,7.37,3310.0,3309.1,38.04901288]
[1722304851240,2.41726,3309.6,3309.1,38.04901288]
[1722304851504,2.41736,3309.4,3309.1,35.0]
[1722304851704,7.37,3310.0,3309.1,35.0]
[1722304851705,2.41743,3309.3,3309.1,35.0]
[1722304852145,8.61003467,3310.0,3309.1,35.0]
[1722304852146,2.41706,3309.8,3309.1,35.0]
[1722304852346,2.41729,3309.5,3309.1,35.0]
[1722304852802,7.37,3310.0,3309.1,35.0]
[1722304852803,9.78697,3310.0,3309.2,2.41745]
[1722304853005,2.41697,3310.0,3309.3,2.47779528]
[1722304853326,19.54,3310.4,3309.8,35.0]
[1722304853327,2.417,3309.9,3309.8,35.0]
[1722304853728,4.834,3309.9,3309.8,35.0]
[1722304853929,2.417,3309.9,3309.8,35.0]
[1722304854324,5.41685,3310.1,3309.8,35.0]
[1722304854611,2.96685,3310.1,3309.8,35.0]
[1722304854947,5.41692,3310.0,3309.8,35.0]
[1722304856628,2.41699,3309.9,3309.8,35.0]
[1722304858455,3.0,3310.0,3309.8,35.0]
[1722304859449,2.96685,3310.1,3309.8,35.0]
[1722304859450,0.55,3310.1,3309.8,35.0]
[1722304860048,5.96673,3310.3,3309.9,4.86570407]
[1722304860049,3.0,3310.3,3309.9,4.86570407]
[1722304860249,2.41653,3310.6,3309.9,4.86570407]
[1722304860411,2.41653,3310.6,3309.9,2.44872407]
[1722304860609,2.41653,3310.6,3309.5,2.41727]
[1722304860610,9.7863,3310.9,3310.0,35.0]
[1722304860806,4.83368,3310.1,3310.0,35.0]
[1722304861043,2.41684,3310.1,3310.0,35.0]
[1722304862444,2.41671,3310.3,3310.0,35.0]
[1722304862653,2.41684,3310.1,3310.0,35.0]
[1722304863222,2.47022042,3310.1,3310.0,35.0]
[1722304863550,0.05338042,3310.1,3310.0,40.46592288]
[1722304863924,2.41641,3310.7,3310.0,38.04901288]
[1722304863925,2.41648,3310.6,3310.0,38.04901288]
[1722304864155,2.41648,3310.6,3310.1,0.06041278]
[1722304864323,0.05342289,3310.5,3310.1,0.06041278]
[1722304864710,0.05342289,3310.5,3310.2,2.41676]
[1722304864911,0.05342289,3310.5,3310.4,2.295]
[1722304865147,3.0,3310.8,3310.4,2.295]
[1722304865351,2.41605,3311.2,3310.4,2.295]
[1722304865352,0.05372419,3310.5,3310.4,2.295]
[1722304865654,2.41598,3311.3,3310.4,4.71156]
[1722304865855,7.37,3311.5,3310.5,0.49592773]
[1722304865856,2.41604,3311.2,3310.5,0.49592773]
[1722304866015,9.78583,3311.5,3310.5,2.91245773]
[1722304866218,7.37,3311.5,3310.8,2.41627]
[1722304866433,9.78584,3311.5,3310.6,2.41647]
[1722304866731,9.78584,3311.5,3310.7,2.41638]
[1722304866931,7.37,3311.5,3310.8,0.241638]
[1722304867127,2.41612,3311.1,3310.5,0.49592773]
[1722304867329,2.41622,3311.0,3310.5,0.49592773]
[1722304867542,7.37,3311.5,3310.4,2.295]
[1722304867543,2.41626,3310.9,3310.4,2.295]
[1722304868062,2.41612,3311.1,3310.4,2.295]
[1722304868415,2.41612,3311.1,3310.4,4.7116]
[1722304868753,5.41598,3311.3,3310.5,0.06040364]
[1722304868952,5.41598,3311.3,3310.6,2.65201036]
[1722304869155,3.0,3311.4,3310.6,2.65201036]
[1722304869359,3.0,3311.4,3310.7,0.06039866]
[1722304869662,2.41597,3311.3,3310.6,2.65201036]
[1722304869856,5.41589,3311.4,3310.7,2.68159104]
[1722304870077,5.41589,3311.4,3310.8,0.06039694]
[1722304870278,5.41589,3311.4,3310.8,2.47672694]
[1722304870279,3.0,3311.4,3310.8,2.47672694]
[1722304870467,3.0,3311.4,3310.9,2.41626]
[1722304870639,3.0,3311.4,3311.0,0.06039694]
[1722304870837,3.0,3311.4,3311.0,0.30806263]
[1722304871441,3.0,3311.4,3310.7,0.26520104]
[1722304871881,0.55,3311.3,3310.4,2.295]
[1722304872080,2.41629,3310.9,3310.5,0.06040719]
[1722304872381,2.41633,3310.8,3310.4,2.295]
[1722304872560,5.41619,3311.0,3310.4,2.295]
[1722304872561,2.41641,3310.7,3310.4,2.295]
[1722304872762,2.4163,3310.9,3310.4,2.295]
[1722304873578,2.41595,3311.4,3310.7,2.4164]
[1722304873774,5.41595,3311.4,3310.8,0.06039703]
[1722304873990,3.0,3311.4,3310.8,0.30807673]
[1722304874141,3.0,3311.4,3310.8,2.72439673]
[1722304874538,5.41592,3311.4,3310.9,0.06039703]
[1722304875138,2.41597,3311.3,3310.9,0.06039703]
[1722304875366,2.41617,3311.1,3310.4,2.295]
[1722304875644,3.0,3311.4,3310.5,2.47694187]
[1722304875645,2.41604,3311.2,3310.5,2.47694187]
[1722304875843,2.41611,3311.1,3310.5,0.53759606]
[1722304876065,2.41611,3311.1,3310.5,0.06040187]
[1722304876579,2.41605,3311.2,3310.5,2.47695187]
[1722304876948,2.41612,3311.1,3310.5,2.41655]
[1722304877871,5.4159,3311.4,3310.6,2.4768337]
[1722304878072,2.41597,3311.3,3310.7,0.48933837]
[1722304878684,2.41597,3311.3,3310.8,0.06039932]
[1722304879066,0.05415279,3311.2,3310.8,0.06039932]
[1722304879377,2.41597,3311.3,3310.8,0.06039932]
[1722304879577,0.05412962,3311.2,3310.8,0.06039932]
[1722304879778,2.41608,3311.2,3310.8,0.35701609]
[1722304879986,2.47024962,3311.1,3310.4,4.71161]
[1722304880196,0.05412962,3311.1,3310.5,2.41655]
[1722304880350,2.41597,3311.3,3310.6,2.41647]
[1722304880549,9.78583,3311.5,3310.4,2.295]
[1722304880550,2.47020278,3311.2,3310.7,0.06040186]
[1722304880747,2.47020278,3311.2,3310.4,2.295]
[1722304881046,2.47020278,3311.2,3310.5,2.887709]
[1722304882055,2.41634,3310.8,3310.4,2.295]
[1722304882453,0.05411806,3310.7,3310.4,2.295]
[1722304882772,2.41605,3311.2,3310.5,0.06040738]
[1722304883104,5.4159,3311.4,3310.6,0.23554074]
[1722304883251,0.05411806,3311.1,3310.7,0.0604018]
[1722304883452,0.55,3311.3,3310.7,0.0604018]
[1722304883699,0.05401766,3311.0,3310.7,0.0604018]
[1722304883856,2.96597,3311.3,3310.7,0.57328705]
[1722304884056,0.05401766,3310.9,3310.8,0.06040056]
[1722304884258,9.78585,3311.5,3310.8,2.47673056]
[1722304884458,0.55,3311.4,3310.8,2.47673056]
[1722304884691,0.60401766,3311.4,3310.8,2.47673056]
[1722304884850,0.60401766,3311.4,3310.9,0.29896158]
[1722304885054,0.05401766,3311.4,3311.0,2.55639932]
[1722304885256,0.05401766,3311.4,3311.0,4.97257932]
[1722304885494,7.37,3312.0,3311.0,2.55639932]
[1722304885693,7.37,3312.0,3311.0,2.496]
[1722304885694,0.0541644,3311.3,3311.0,2.496]
[1722304885993,0.05421072,3311.2,3311.1,0.27949616]
[1722304886195,0.05421072,3311.2,3311.0,2.496]
[1722304886196,2.41582,3311.5,3311.0,2.496]
[1722304886372,0.05426477,3311.4,3311.0,2.496]
[1722304886570,2.41572,3311.7,3311.0,2.496]
[1722304886772,0.05426091,3311.6,3311.0,2.496]
[1722304887170,2.41605,3311.2,3310.7,0.51288525]
[1722304887404,0.05430336,3311.1,3310.6,4.86687]
[1722304887570,2.41598,3311.3,3310.6,2.4504]
[1722304887757,0.0542995,3311.2,3310.6,2.4504]
[1722304887958,2.41583,3311.5,3310.6,2.4504]
[1722304888271,0.05421456,3311.4,3310.6,5.5952]
[1722304888459,2.41604,3311.2,3310.6,5.5952]
[1722304888657,2.47015456,3311.4,3310.6,5.5952]
[1722304888981,2.41594,3311.4,3310.6,5.5952]
[1722304889294,2.41583,3311.5,3310.7,2.47680185]
[1722304889295,0.05411806,3311.3,3310.7,2.47680185]
[1722304889467,2.41583,3311.5,3310.8,0.62595597]
[1722304889669,0.05417983,3311.2,3310.9,2.41623]
[1722304889880,2.41576,3311.6,3311.0,0.06039559]
[1722304890070,0.05417983,3311.1,3311.0,0.06039559]
[1722304890400,2.41576,3311.6,3311.0,0.06039559]
[1722304890708,0.05427633,3311.5,3311.0,0.06039559]
[1722304891208,2.47010633,3311.5,3311.0,0.06039559]
[1722304892001,0.05427633,3311.5,3311.0,0.06039559]
[1722304892296,2.4151,3312.5,3311.8,2.3519]
[1722304892613,2.4151,3312.5,3311.8,4.76749]
[1722304892801,2.4151,3312.5,3311.9,0.06038183]
[1722304893113,9.78494,3312.7,3312.0,2.4154]
[1722304893395,9.78494,3312.7,3312.1,0.06037814]
[1722304893396,2.41494,3312.7,3312.1,0.06037814]
[1722304893756,0.0527149,3312.6,3312.1,0.06037814]
[1722304895014,0.0527149,3312.6,3311.8,2.3519]
[1722304895015,0.0527149,3312.6,3311.9,0.06037712]
[1722304895810,0.0527149,3312.6,3312.0,2.4154]
[1722304895970,0.0527149,3312.6,3312.1,0.06037715]
[1722304897000,2.4677349,3312.6,3312.1,0.06037715]
[1722304897231,2.41509,3312.5,3311.8,2.3519]
[1722304897558,2.41533,3312.2,3311.4,2.4931]
[1722304897842,0.55,3312.5,3311.4,2.4931]
[1722304898041,2.46867684,3312.1,3311.5,0.06038784]
[1722304898187,2.41539,3312.1,3311.5,0.06038784]
[1722304898391,0.05328684,3312.0,3311.5,0.06038784]
[1722304899116,0.05328684,3312.0,3311.5,0.55732562]
[1722304899318,0.05328684,3312.0,3311.8,2.41]
[1722304899518,9.78518,3312.4,3311.9,0.06038123]
[1722304899919,7.37,3312.4,3311.9,0.06038123]
[1722304900172,7.37,3312.4,3311.8,2.41]
[1722304900173,2.41539,3312.1,3311.8,2.41]
[1722304900327,2.4155,3312.0,3311.3,2.41]
[1722304900494,2.41531,3312.2,3311.3,2.41]
[1722304900688,8.107,3312.4,3311.3,2.41]
[1722304900689,2.41539,3312.1,3311.3,2.41]
[1722304901120,2.4155,3312.0,3311.3,2.41]
[1722304901441,2.41525,3312.3,3311.4,0.482604]
[1722304901743,2.41532,3312.2,3311.5,2.41581]
[1722304901951,2.41528,3312.3,3311.6,0.06038376]
[1722304902097,2.41528,3312.3,3311.6,0.30801114]
[1722304902294,2.41528,3312.3,3311.7,2.3983]
[1722304902493,7.37,3312.4,3311.8,0.06038377]
[1722304902812,2.41512,3312.5,3311.8,2.47596377]
[1722304904289,2.41494,3312.7,3311.9,2.41553]
[1722304904569,2.41502,3312.6,3312.0,0.06037812]
[1722304904978,7.37,3312.8,3312.0,0.06037812]
[1722304905173,2.41524,3312.3,3312.0,0.06037812]
[1722304905352,2.41512,3312.5,3311.8,0.06037961]
[1722304905573,2.41526,3312.3,3311.8,0.06037961]
[1722304905733,2.41503,3312.6,3311.8,0.06037961]
[1722304906152,2.41517,3312.4,3311.8,0.06037961]
[1722304907678,2.41524,3312.3,3311.8,0.06037961]
[1722304907878,2.41512,3312.5,3311.9,0.48743396]
[1722304908534,7.37,3312.8,3311.8,0.06037961]
[1722304908734,2.41535,3312.2,3311.8,0.06037961]
[1722304909099,2.41524,3312.3,3311.7,2.3983]
[1722304909300,2.41552,3312.0,3311.0,4.80013]
[1722304909595,2.41568,3311.7,3311.0,4.80013]
[1722304909873,2.41553,3311.9,3311.1,2.47649119]
[1722304910201,0.05149575,3311.6,3311.1,2.47649119]
[1722304910335,2.41553,3311.9,3311.1,2.47649119]
[1722304910533,0.05147641,3311.5,3311.1,0.06039119]
[1722304910735,2.41553,3311.9,3311.2,0.48605212]
[1722304911047,2.46708641,3311.8,3311.2,0.48605212]
[1722304911468,0.05147641,3311.8,3311.3,2.44439091]
[1722304911933,2.41546,3312.0,3311.3,2.44439091]
[1722304912137,0.05132551,3311.7,3311.3,2.44439091]
[1722304912357,2.41546,3312.0,3311.4,0.2930443]
[1722304912566,0.05132551,3311.6,3311.5,0.06039091]
[1722304913096,2.41533,3312.2,3311.5,2.47616091]
[1722304913373,0.05131001,3311.6,3311.5,2.47616091]
[1722304913591,7.37,3312.3,3311.8,2.41559]
[1722304913736,2.41506,3312.6,3311.9,0.06037898]
[1722304914083,9.78499,3312.7,3311.9,2.47588898]
[1722304914947,2.41503,3312.6,3311.9,2.47588898]
[1722304915149,2.41503,3312.6,3312.0,0.0603769]
[1722304915351,2.41503,3312.6,3312.1,2.3715]
[1722304917256,2.4151,3312.5,3312.1,2.3715]
[1722304917551,2.41519,3312.4,3312.1,2.3715]
[1722304917776,2.41507,3312.6,3312.1,2.3715]
[1722304917942,2.41507,3312.6,3312.1,2.63944658]
[1722304918382,7.37,3312.7,3312.2,0.06037695]
[1722304919053,7.37,3312.7,3312.4,2.3684]
[1722304919203,7.37,3312.7,3312.4,2.42877246]
[1722304919859,7.37,3312.7,3312.4,4.84392246]
[1722304920057,7.37,3312.7,3312.5,0.48439225]
[1722304920266,2.41466,3313.1,3312.5,0.48439225]
[1722304920475,2.41466,3313.1,3312.4,4.84392246]
[1722304920476,9.9297568,3313.2,3312.4,2.42877246]
[1722304920817,7.5151568,3313.2,3312.5,2.41509]
[1722304921103,7.5151568,3313.2,3312.6,0.06036614]
[1722304921567,7.5151568,3313.2,3312.6,2.47537614]
[1722304921768,7.5151568,3313.2,3312.7,0.24753761]
[1722304921991,7.5151568,3313.2,3312.8,0.06036582]
[1722304922594,7.5151568,3313.2,3312.7,0.24753761]
[1722304922782,2.4148,3312.9,3312.4,2.3684]
[1722304922990,2.4147,3313.1,3312.4,4.78356]
[1722304923215,2.4147,3313.1,3312.5,3.134969]
[1722304923915,0.04860439,3313.0,3312.5,3.134969]
[1722304924087,0.04860439,3313.0,3312.6,0.06036648]
[1722304924480,0.04860439,3313.0,3312.7,2.4107]
[1722304924713,7.5151568,3313.2,3312.9,2.4148]
[1722304924868,7.5151568,3313.2,3313.1,2.41465]
[1722304925070,0.1451568,3313.2,3313.1,39.82535]
[1722304925274,0.1451568,3313.2,3313.1,42.24]
[1722304925908,0.1451568,3313.2,3313.1,37.4107]
[1722304926118,0.1451568,3313.2,3313.1,40.45971288]
[1722304926414,0.1451568,3313.2,3313.1,42.87436288]
[1722304926616,0.1451568,3313.2,3313.1,40.45971288]
[1722304926789,0.1451568,3313.2,3313.1,42.87436288]
[1722304926990,0.1451568,3313.2,3313.1,45.28901288]
[1722304932309,0.1451568,3313.2,3313.1,42.87436288]
[1722304932799,0.1451568,3313.2,3313.1,45.28901288]
[1722304933822,0.1451568,3313.2,3313.1,42.87436288]
[1722304934033,0.1451568,3313.2,3313.1,40.45971288]
[1722304934237,0.1451568,3313.2,3313.1,42.87436288]
[1722304934938,0.1451568,3313.2,3313.1,45.28901288]
[1722304935796,0.1451568,3313.2,3313.1,42.87436288]
[1722304936521,0.1451568,3313.2,3313.1,38.04901288]
[1722304936712,0.1451568,3313.2,3313.1,35.0]
[1722304937627,0.1451568,3313.2,3313.1,37.41465]
[1722304939338,0.1451568,3313.2,3313.1,42.1109]
[1722304940640,0.1451568,3313.2,3313.1,39.69625]
[1722304940941,0.1451568,3313.2,3313.1,35.0]
[1722304941142,0.1451568,3313.2,3313.1,38.04901288]
[1722304941460,0.1451568,3313.2,3313.1,42.87831288]
[1722304941738,0.1451568,3313.2,3313.1,45.15991288]
[1722304942098,0.1451568,3313.2,3313.1,49.07456288]
[1722304942294,0.1451568,3313.2,3313.1,52.07456288]
[1722304943603,0.1451568,3313.2,3313.1,52.62456288]
[1722304944213,7.37,3314.4,3314.3,2.41378]
[1722304944399,2.41328,3315.0,3314.3,2.902908]
[1722304944600,7.37,3315.1,3314.4,0.06033429]
[1722304944830,9.7832,3315.1,3314.5,35.0]
[1722304945208,9.7332,3315.1,3314.6,0.06033431]
[1722304945846,2.41273,3315.8,3314.9,2.41333]
[1722304946144,2.41257,3316.0,3315.1,2.41318]
[1722304946458,2.41248,3316.1,3315.4,35.0]
[1722304946601,2.41248,3316.1,3315.5,0.06031643]
[1722304946808,2.41285,3315.6,3315.0,0.241333]
[1722304947039,2.41298,3315.4,3315.0,0.241333]
[1722304947243,2.3337,3315.9,3314.7,2.4775]
[1722304947244,2.41284,3315.6,3314.7,2.4775]
[1722304947650,2.41299,3315.4,3314.7,2.4775]
[1722304947802,2.41332,3315.0,3314.3,0.489128]